bitfinex-derivatives/quotes_ETHF0:USTF0_20240920
["timestamp","ask_amount","ask_price","bid_price","bid_amount"]
[1726853623855,2.04142283,2538.8,2538.7,0.39388]
[1726853625348,2.04142283,2538.8,2538.7,1.37858]
[1726853625548,2.04142283,2538.9,2538.8,1.37852]
[1726853625752,2.04142283,2538.9,2538.8,4.44852]
[1726853626055,2.04142283,2539.0,2538.9,0.39385]
[1726853626262,2.04142283,2539.0,2538.9,0.78785]
[1726853627543,2.55361164,2539.1,2539.0,0.39383]
[1726853627747,2.94743164,2539.1,2539.0,0.39383]
[1726853627954,4.23347926,2539.1,2539.0,0.39383]
[1726853628150,4.62729926,2539.1,2539.0,0.39383]
[1726853628349,4.23347926,2539.1,2539.0,0.39383]
[1726853628754,4.62729926,2539.1,2539.0,0.39383]
[1726853629353,1.68017196,2539.1,2539.0,0.39382]
[1726853629553,2.55383085,2539.1,2539.0,0.79572]
[1726853629856,4.23400281,2539.1,2539.0,0.79572]
[1726853630057,4.62782281,2539.1,2539.0,0.79572]
[1726853630561,4.23400281,2539.1,2539.0,3.86572]
[1726853630752,3.70634085,2539.2,2539.1,0.39382]
[1726853630953,2.83298463,2539.2,2539.1,0.39382]
[1726853632055,0.39382,2539.1,2539.0,0.39382]
[1726853632359,2.07429463,2539.1,2539.0,0.39382]
[1726853632560,2.07600078,2539.1,2539.0,0.39382]
[1726853632759,0.39384,2539.0,2538.9,0.39384]
[1726853633060,2.55423058,2539.0,2538.9,0.39385]
[1726853633248,4.23641136,2539.0,2538.9,0.39385]
[1726853633861,2.94805058,2539.1,2539.0,0.39383]
[1726853634355,4.63040692,2539.1,2539.0,0.39383]
[1726853635149,2.07617634,2539.1,2539.0,0.39383]
[1726853635558,0.39382,2539.1,2539.0,0.39383]
[1726853635756,2.07617634,2539.1,2539.0,0.39383]
[1726853635952,0.39384,2539.0,2538.9,0.39384]
[1726853636259,0.39384,2539.0,2538.8,0.39385]
[1726853636260,0.39385,2538.9,2538.8,0.39385]
[1726853636556,3.3250436,2538.9,2538.8,0.39386]
[1726853636757,5.00842696,2538.9,2538.8,0.39386]
[1726853637560,4.19239,2539.0,2538.9,1.37847]
[1726853637561,2.5545936,2539.0,2538.9,1.37847]
[1726853637760,2.5545936,2539.0,2538.9,0.39385]
[1726853638154,4.23787501,2539.0,2538.9,0.39385]
[1726853638354,4.63170501,2539.0,2538.9,0.39385]
[1726853638555,2.07711141,2539.0,2538.9,0.39385]
[1726853638955,0.39382,2539.1,2539.0,0.39383]
[1726853639159,2.07713861,2539.1,2539.0,0.39383]
[1726853639658,1.68331861,2539.1,2539.0,0.39383]
[1726853641163,2.07713861,2539.1,2539.0,0.39383]
[1726853641366,1.68331861,2539.1,2539.0,0.39383]
[1726853642364,1.68404331,2539.1,2539.0,0.39383]
[1726853642656,2.55559823,2539.1,2539.0,5.43301]
[1726853642869,2.93679823,2539.2,2539.1,1.37837]
[1726853643159,0.3812,2539.2,2539.1,1.37837]
[1726853643362,5.76339823,2539.3,2539.2,1.37831]
[1726853643556,7.45097041,2539.3,2539.2,4.83101]
[1726853644065,7.45097041,2539.3,2539.2,3.4638]
[1726853644367,7.45097041,2539.3,2539.2,0.3938]
[1726853644969,0.3938,2539.2,2539.1,0.39381]
[1726853645157,2.94924049,2539.2,2539.1,0.39381]
[1726853645352,2.94924049,2539.2,2539.1,0.39382]
[1726853645353,4.63666428,2539.2,2539.1,0.39382]
[1726853646256,4.24288416,2539.2,2539.1,0.39382]
[1726853646667,0.39382,2539.1,2539.0,0.39382]
[1726853646870,4.24298714,2539.1,2538.8,8.91365]
[1726853647170,2.83467667,2539.0,2538.9,0.39385]
[1726853647963,1.18403,2539.0,2538.9,0.39385]
[1726853648165,3.73949037,2539.0,2538.9,0.39385]
[1726853648365,3.73949037,2539.0,2538.8,4.859]
[1726853648366,0.39385,2538.9,2538.8,5.25285]
[1726853648663,4.39185,2539.0,2538.9,0.39385]
[1726853648863,6.07919173,2539.0,2538.9,0.39385]
[1726853649872,5.68534173,2539.0,2538.9,0.39385]
[1726853651468,6.07917173,2539.0,2538.9,0.39385]
[1726853651859,6.07906935,2539.0,2538.9,0.39385]
[1726853652060,4.89503935,2539.0,2538.9,0.39385]
[1726853652266,2.04426658,2539.0,2538.9,12.30149]
[1726853652460,2.55530397,2539.2,2539.0,1.37842]
[1726853652461,2.04426658,2539.1,2539.0,1.37842]
[1726853652661,2.04426658,2539.1,2539.0,2.16972]
[1726853652869,2.04426658,2539.1,2539.0,6.10812]
[1726853653680,2.04426658,2539.1,2539.0,2.16972]
[1726853654067,2.94911397,2539.2,2539.1,0.39382]
[1726853654373,4.6363025,2539.2,2539.1,0.39382]
[1726853654560,4.63623496,2539.2,2539.1,0.39382]
[1726853654763,2.08105674,2539.2,2539.1,0.39382]
[1726853655776,0.39382,2539.1,2539.0,0.39382]
[1726853655967,2.94876862,2539.1,2539.0,0.39382]
[1726853656160,4.63601536,2539.1,2539.0,0.39382]
[1726853656361,4.24214753,2539.1,2539.0,3.46382]
[1726853656575,2.55490079,2539.2,2539.1,0.39382]
[1726853656870,0.78049,2539.3,2539.2,0.3938]
[1726853657071,2.46763002,2539.3,2539.2,0.3938]
[1726853657372,2.07384002,2539.3,2539.2,0.3938]
[1726853657673,2.46762002,2539.3,2539.2,0.3938]
[1726853658172,2.46762002,2539.3,2539.1,0.3938]
[1726853658369,4.24201121,2539.2,2539.1,0.39382]
[1726853658570,1.68714002,2539.2,2539.1,0.39382]
[1726853658773,2.08095002,2539.2,2538.8,6.23143]
[1726853658976,2.04352371,2539.0,2538.9,0.39385]
[1726853660180,2.04352371,2539.0,2538.8,6.23143]
[1726853660181,2.55440463,2539.1,2539.0,0.39383]
[1726853660773,4.24060683,2539.1,2539.0,0.39383]
[1726853661478,2.55440463,2539.2,2539.1,0.39382]
[1726853661677,4.24179107,2539.2,2539.1,0.39382]
[1726853661974,4.24179107,2539.2,2539.1,4.33222]
[1726853663180,1.68738644,2539.2,2539.1,18.57912]
[1726853663371,0.96037799,2539.3,2539.2,0.98451]
[1726853663575,2.55440463,2539.7,2539.6,0.39374]
[1726853663782,2.55440463,2539.7,2539.6,19.26869]
[1726853664084,3.53612139,2540.1,2539.6,19.26869]
[1726853664085,2.55440463,2540.1,2540.0,0.39368]
[1726853664384,2.55440463,2540.1,2540.0,7.40048]
[1726853664583,2.55440463,2540.2,2540.1,0.39366]
[1726853664878,4.21154292,2540.2,2540.1,0.39366]
[1726853665284,4.21154292,2540.2,2540.1,4.33046]
[1726853665487,6.16660463,2540.3,2540.1,4.33046]
[1726853665779,4.21046021,2540.2,2540.1,0.39366]
[1726853665979,4.21055538,2540.2,2539.8,3.2078]
[1726853666175,2.55440463,2540.2,2540.1,0.39366]
[1726853666375,4.21055615,2540.2,2540.1,0.39366]
[1726853666678,6.56023463,2540.3,2540.1,0.39366]
[1726853666880,4.60348311,2540.2,2539.9,0.39368]
[1726853667077,4.20983311,2540.1,2539.9,0.39368]
[1726853667281,2.55440463,2540.1,2539.9,0.39368]
[1726853667677,2.94805463,2540.2,2539.9,0.39368]
[1726853667883,2.94805463,2540.2,2540.0,0.39367]
[1726853668278,2.55440463,2540.2,2539.6,7.953]
[1726853668481,3.2078,2539.9,2539.7,0.39372]
[1726853668677,3.2078,2539.9,2539.6,4.882]
[1726853668678,0.4062,2539.8,2539.6,4.882]
[1726853668983,1.56012,2539.8,2539.6,4.882]
[1726853669193,1.56012,2539.8,2539.6,5.27574]
[1726853669575,1.56012,2539.8,2539.6,4.882]
[1726853669775,1.1664,2539.8,2539.4,0.39376]
[1726853669986,1.1664,2539.8,2539.2,0.3938]
[1726853669987,3.2078,2539.6,2539.2,0.3938]
[1726853670276,0.39377,2539.4,2539.2,0.39379]
[1726853670475,3.60155,2539.6,2539.3,0.39378]
[1726853670677,3.2078,2539.6,2539.4,0.39376]
[1726853670872,0.39376,2539.5,2539.3,0.39377]
[1726853671073,3.60155,2539.6,2539.3,0.39377]
[1726853671275,3.2078,2539.6,2539.4,0.39376]
[1726853671481,3.60155,2539.6,2539.3,0.39377]
[1726853672288,3.60155,2539.6,2539.1,9.013]
[1726853672289,0.39378,2539.4,2539.1,9.013]
[1726853672472,1.42442996,2539.3,2539.1,9.013]
[1726853672682,1.42442996,2539.3,2539.1,5.27582]
[1726853672683,1.42522996,2539.2,2539.1,5.27582]
[1726853672993,1.42522996,2539.2,2539.1,0.39382]
[1726853673580,0.4051,2539.2,2538.9,4.882]
[1726853673782,1.01998786,2539.1,2538.8,0.3952]
[1726853673985,1.01998786,2539.0,2538.9,5.27584]
[1726853674174,3.4751,2539.2,2538.4,4.882]
[1726853674376,1.01960496,2538.7,2538.6,0.39388]
[1726853675481,1.01960496,2538.7,2538.6,0.39389]
[1726853675680,1.01960496,2538.7,2538.5,0.3939]
[1726853678091,1.01960496,2538.7,2538.4,4.882]
[1726853678292,1.01960496,2538.6,2538.4,5.27592]
[1726853678586,1.40320496,2538.6,2538.4,5.27592]
[1726853678991,1.40320496,2538.6,2538.5,0.39391]
[1726853679490,1.40320496,2538.6,2538.4,4.882]
[1726853679692,1.40320496,2538.6,2538.5,0.39391]
[1726853679988,1.40320496,2538.6,2538.3,11.1608]
[1726853680189,1.40320496,2538.6,2538.5,0.39391]
[1726853681197,1.40320496,2538.6,2538.4,0.39391]
[1726853681486,1.40320496,2538.6,2538.5,0.39391]
[1726853681685,1.40320496,2538.6,2538.4,0.39391]
[1726853681897,1.40320496,2538.6,2538.5,0.39391]
[1726853683294,1.40320496,2538.6,2538.4,0.39391]
[1726853683487,1.40320496,2538.6,2538.4,5.06391]
[1726853684491,0.3836,2538.6,2538.5,0.39391]
[1726853685294,0.3836,2538.6,2538.4,5.06391]
[1726853685492,0.3836,2538.6,2538.5,0.39391]
[1726853686494,0.3836,2538.6,2538.4,5.06391]
[1726853686889,1.40320496,2538.6,2538.4,5.06391]
[1726853687396,1.79709496,2538.6,2538.3,3.60173]
[1726853687690,1.79709496,2538.6,2538.3,8.27173]
[1726853688097,1.40320496,2538.6,2538.4,0.39392]
[1726853688299,1.01960496,2538.5,2538.4,0.39392]
[1726853688485,1.01960496,2538.5,2538.3,3.2078]
[1726853688689,0.3835,2538.4,2538.3,3.60173]
[1726853689391,0.3835,2538.4,2538.3,3.2078]
[1726853689587,0.3835,2538.4,2538.3,3.60174]
[1726853691698,0.3835,2538.4,2538.3,0.39394]
[1726853693691,0.3835,2538.4,2538.1,7.74]
[1726853693895,0.3835,2538.4,2538.3,0.39394]
[1726853697702,0.3835,2538.4,2538.1,7.74]
[1726853698094,0.3835,2538.4,2538.3,0.39394]
[1726853698494,0.3835,2538.4,2538.2,0.39394]
[1726853698694,0.77743,2538.4,2538.2,0.39396]
[1726853698891,0.3835,2538.4,2538.2,0.39396]
[1726853700095,0.3835,2538.4,2538.1,7.74]
[1726853700299,0.3835,2538.4,2538.3,0.39394]
[1726853700597,0.3835,2538.4,2538.3,3.07]
[1726853701204,0.39391,2538.5,2538.3,7.0092]
[1726853701404,5.38910496,2538.6,2538.3,3.46394]
[1726853701605,0.39391,2538.5,2538.3,3.07]
[1726853701811,0.39391,2538.5,2538.2,3.46395]
[1726853703799,4.99520496,2538.6,2538.2,3.07]
[1726853703999,0.394,2537.9,2537.8,8.573]
[1726853704209,3.6018,2538.0,2537.7,0.39402]
[1726853704417,0.3771,2537.8,2537.7,0.39402]
[1726853705106,3.2078,2538.0,2537.8,0.39401]
[1726853705909,3.60179,2538.0,2537.7,3.46402]
[1726853706411,3.60179,2538.0,2537.7,3.07]
[1726853706999,3.60179,2538.0,2537.8,0.39402]
[1726853707603,3.2078,2538.0,2537.8,0.39402]
[1726853707913,3.60179,2538.0,2537.8,0.39402]
[1726853709107,0.39399,2538.0,2537.8,0.39402]
[1726853712001,3.5896,2538.1,2537.8,0.39402]
[1726853712201,0.39399,2538.0,2537.8,0.39402]
[1726853713117,0.39399,2538.0,2537.7,3.07]
[1726853714007,0.39399,2538.0,2537.8,0.39401]
[1726853714410,1.41359496,2538.0,2537.8,0.39401]
[1726853714803,1.01960496,2538.0,2537.7,3.07]
[1726853715012,1.41359496,2538.0,2537.8,0.39401]
[1726853716516,1.01960496,2537.9,2537.8,0.39401]
[1726853717409,1.41360496,2537.9,2537.8,0.39401]
[1726853717709,1.41360496,2537.9,2537.6,4.442]
[1726853717917,0.4095,2537.8,2537.7,0.39403]
[1726853718610,1.01960496,2537.9,2537.8,0.39402]
[1726853719210,0.394,2537.9,2537.7,3.46402]
[1726853719413,1.01920574,2537.8,2537.7,0.39402]
[1726853720419,1.01920574,2537.8,2537.2,4.131]
[1726853720420,0.39405,2537.6,2537.3,4.442]
[1726853720616,9.18531557,2537.8,2537.3,0.3941]
[1726853720617,1.39694627,2537.5,2537.3,0.3941]
[1726853721116,1.39694627,2537.5,2537.4,0.39408]
[1726853721318,1.39694627,2537.5,2537.2,8.573]
[1726853721319,1.39694627,2537.5,2537.3,0.39409]
[1726853724323,1.39694627,2537.5,2537.2,8.9671]
[1726853724512,1.39694627,2537.5,2537.1,0.3794]
[1726853724711,1.01944627,2537.4,2536.8,12.923]
[1726853724919,1.82305627,2537.3,2536.9,4.83715]
[1726853725122,4.22724627,2537.2,2536.9,4.83715]
[1726853725318,4.62135627,2537.2,2536.8,10.64786]
[1726853725516,3.619,2537.2,2536.9,4.83715]
[1726853725722,1.43064627,2537.2,2536.9,4.83715]
[1726853726023,1.82475627,2537.2,2536.9,4.83715]
[1726853726427,0.4112,2537.2,2536.9,4.83715]
[1726853726816,0.4112,2537.2,2537.0,0.39414]
[1726853727314,1.42894627,2537.3,2537.0,0.39414]
[1726853727315,1.82304627,2537.3,2537.0,0.39414]
[1726853727725,0.39411,2537.2,2536.9,7.90715]
[1726853728016,1.82305627,2537.3,2537.0,0.39414]
[1726853730411,1.82304627,2537.3,2537.0,0.39414]
[1726853730817,1.42894627,2537.3,2537.1,0.39412]
[1726853731021,0.8036,2537.3,2537.1,0.39413]
[1726853731216,0.4095,2537.3,2537.1,0.39412]
[1726853731421,0.4095,2537.3,2536.9,7.513]
[1726853731422,0.8036,2537.3,2536.9,7.513]
[1726853731720,0.8036,2537.3,2537.0,0.39414]
[1726853732630,0.4095,2537.3,2536.9,7.513]
[1726853732816,0.4095,2537.3,2537.2,1.37939]
[1726853733127,3.2078,2537.5,2537.4,0.39408]
[1726853733329,3.2078,2537.5,2537.4,3.46408]
[1726853734032,3.2078,2537.5,2537.4,1.81408]
[1726853735119,3.2078,2537.5,2537.4,0.39408]
[1726853735918,3.2078,2537.5,2537.3,0.79268]
[1726853736134,3.2078,2537.5,2537.4,0.39408]
[1726853736328,3.2078,2537.5,2537.3,0.79268]
[1726853736518,3.2078,2537.5,2537.4,0.39408]
[1726853737119,3.2078,2537.5,2537.4,3.47408]
[1726853741233,1.01944627,2537.7,2537.5,0.39405]
[1726853741431,1.01944627,2537.7,2537.6,8.73118]
[1726853741632,0.4104,2538.3,2538.2,0.39396]
[1726853741933,3.2078,2538.4,2538.3,0.39394]
[1726853742133,1.52942835,2538.7,2538.5,0.3939]
[1726853742326,4.73722835,2538.8,2538.5,3.4739]
[1726853742830,1.52942835,2538.7,2538.5,3.08]
[1726853743031,1.92331835,2538.7,2538.3,3.47393]
[1726853743530,0.3939,2538.6,2538.3,3.08]
[1726853743841,0.3939,2538.6,2538.2,0.39395]
[1726853744134,0.3895,2538.5,2538.2,0.39395]
[1726853744337,0.3961,2538.4,2538.2,0.39395]
[1726853744935,0.3961,2538.4,2538.3,3.08]
[1726853745644,0.3961,2538.4,2538.3,3.47394]
[1726853747330,0.3961,2538.4,2538.3,7.41314]
[1726853747532,0.3961,2538.4,2538.3,3.47394]
[1726853748037,5.53022835,2538.8,2538.7,0.39388]
[1726853748338,4.0008,2538.8,2538.7,3.08]
[1726853749345,4.0008,2538.8,2538.5,3.4739]
[1726853749643,5.92409835,2538.8,2538.5,3.4739]
[1726853749831,5.53022835,2538.8,2538.5,3.4739]
[1726853750030,5.92409835,2538.8,2538.5,3.08]
[1726853750236,5.92409835,2538.8,2538.5,3.4739]
[1726853750538,4.39467,2538.8,2538.5,3.4739]
[1726853750833,0.793,2538.8,2538.7,3.47388]
[1726853751039,3.2078,2539.1,2538.9,0.39385]
[1726853751228,0.4115,2539.0,2538.9,3.08]
[1726853752134,0.4115,2539.0,2538.9,3.47385]
[1726853754738,3.6103,2539.1,2539.0,0.39383]
[1726853754739,3.2078,2539.1,2539.0,0.39383]
[1726853755234,3.2078,2539.1,2539.0,0.80363]
[1726853758338,3.2078,2539.1,2539.0,0.39383]
[1726853758731,3.2078,2539.1,2539.0,4.66383]
[1726853759040,3.2078,2539.1,2539.0,4.27]
[1726853759241,3.2078,2539.1,2539.0,4.66383]
[1726853759441,1.91762835,2539.3,2539.0,4.27]
[1726853759750,1.91762835,2539.3,2539.0,0.39382]
[1726853759751,0.78199,2539.3,2539.0,0.39382]
[1726853759936,0.3882,2539.3,2539.0,4.27]
[1726853760136,5.85602835,2539.3,2539.0,4.27]
[1726853760345,0.3938,2539.2,2539.0,4.27]
[1726853760743,3.9384,2539.2,2538.7,3.08]
[1726853760935,3.2078,2538.8,2538.6,4.27]
[1726853761245,5.49679,2538.7,2538.4,4.66392]
[1726853761437,0.39389,2538.6,2538.4,4.66392]
[1726853761744,1.55759,2538.7,2538.5,3.08]
[1726853761941,1.1637,2538.7,2538.5,3.4739]
[1726853762647,1.1637,2538.7,2538.5,3.08]
[1726853762839,0.3921,2538.7,2538.6,3.60169]
[1726853763040,0.7734,2539.1,2538.9,0.39384]
[1726853763242,0.3752,2539.0,2538.9,3.08]
[1726853763442,0.3752,2539.0,2538.9,3.47385]
[1726853764653,0.3721,2539.1,2539.0,0.39383]
[1726853764844,0.3721,2539.1,2539.0,4.65983]
[1726853765239,0.3721,2539.1,2538.6,3.6119]
[1726853765440,3.2078,2538.9,2538.6,0.4041]
[1726853765745,0.7453,2538.8,2538.3,4.131]
[1726853765945,0.39391,2538.5,2538.2,17.198]
[1726853766247,0.3994,2538.7,2538.4,3.08]
[1726853766454,0.3994,2538.7,2538.6,3.08]
[1726853767138,0.3994,2538.7,2538.6,3.47389]
[1726853769152,4.3386,2538.7,2538.2,9.852]
[1726853769446,3.2078,2538.5,2537.9,8.397]
[1726853769649,4.19254,2538.6,2538.0,0.39399]
[1726853769845,0.39393,2538.4,2538.0,0.39399]
[1726853770144,0.78634,2538.3,2537.9,11.477]
[1726853770347,1.2026,2538.3,2537.9,11.477]
[1726853770548,1.2026,2538.3,2537.9,11.87099]
[1726853770747,1.59654,2538.3,2537.9,11.87099]
[1726853772340,1.59654,2538.3,2537.9,11.477]
[1726853772855,0.39398,2538.1,2537.9,11.477]
[1726853773155,0.39398,2538.1,2537.5,7.6391128]
[1726853773156,6.45432835,2538.2,2537.5,4.66105]
[1726853773452,6.45432835,2538.2,2537.4,3.08]
[1726853773453,4.19283,2537.9,2537.4,3.08]
[1726853773652,0.39404,2537.7,2537.4,3.08]
[1726853773948,1.1914,2537.8,2537.5,0.39406]
[1726853774348,1.1914,2537.8,2537.6,3.08]
[1726853774551,0.402,2537.8,2537.7,0.39403]
[1726853774850,2.44271557,2538.1,2537.6,3.08]
[1726853774851,2.31882835,2538.1,2537.6,3.08]
[1726853775052,1.1974,2538.1,2538.0,3.47399]
[1726853775361,1.52942835,2538.4,2538.0,7.347]
[1726853775542,1.52942835,2538.6,2538.4,0.39392]
[1726853775853,1.91282835,2538.6,2538.4,3.47392]
[1726853776054,1.91282835,2538.6,2538.4,3.08]
[1726853776546,1.91282835,2538.6,2538.4,3.47392]
[1726853776855,2.44471557,2538.7,2538.4,3.47392]
[1726853776856,0.408,2538.7,2538.6,0.39389]
[1726853777040,0.408,2538.7,2538.6,3.08]
[1726853777238,0.408,2538.7,2538.5,3.47391]
[1726853778049,0.80189,2538.7,2538.3,0.39394]
[1726853779457,0.3939,2538.6,2538.2,3.47395]
[1726853779760,0.39391,2538.5,2538.1,0.80436]
[1726853779945,0.3803,2538.4,2538.1,0.80436]
[1726853780353,0.3803,2538.4,2538.2,0.39395]
[1726853780747,0.3803,2538.4,2538.1,0.39396]
[1726853780953,0.3803,2538.4,2538.0,7.347]
[1726853781155,0.77423,2538.4,2538.0,7.74098]
[1726853781453,3.2078,2538.3,2538.0,4.267]
[1726853781754,0.39397,2538.1,2538.0,4.267]
[1726853782258,0.3977,2538.1,2538.0,4.267]
[1726853782754,0.3977,2538.1,2538.0,7.74099]
[1726853783057,0.3977,2538.1,2538.0,7.347]
[1726853783556,4.73167,2538.1,2538.0,7.347]
[1726853784053,0.3977,2538.1,2538.0,7.347]
[1726853784358,0.79167,2538.1,2538.0,7.347]
[1726853784561,4.73167,2538.1,2538.0,3.08]
[1726853785052,9.46889835,2538.1,2538.0,3.08]
[1726853785452,2.32109835,2538.1,2538.0,3.08]
[1726853786149,0.3977,2538.1,2538.0,3.47399]
[1726853786356,0.3977,2538.1,2538.0,3.08]
[1726853786555,0.3977,2538.1,2538.0,3.47399]
[1726853786947,0.3977,2538.1,2538.0,3.08]
[1726853787153,0.79167,2538.1,2538.0,3.08]
[1726853787756,0.3977,2538.1,2538.0,3.47399]
[1726853788060,0.3977,2538.1,2538.0,3.08]
[1726853788357,0.3977,2538.1,2538.0,3.47399]
[1726853789152,0.3902,2538.2,2538.1,0.39397]
[1726853791861,0.39397,2538.1,2538.0,3.08]
[1726853792257,3.60177,2538.1,2538.0,3.08]
[1726853792464,0.39399,2538.0,2537.9,4.267]
[1726853792665,0.39401,2537.9,2537.7,0.39403]
[1726853792859,1.15581,2537.9,2537.7,0.39403]
[1726853793060,2.68523835,2537.9,2537.7,0.39403]
[1726853793259,4.73722835,2538.1,2537.8,3.08]
[1726853793571,1.91962835,2538.2,2538.1,0.39397]
[1726853793754,0.3902,2538.2,2538.1,0.39397]
[1726853795252,0.3725,2538.5,2538.1,3.94]
[1726853795458,0.3725,2538.5,2538.4,0.39392]
[1726853795656,0.3725,2538.5,2538.3,3.47393]
[1726853796256,2.29712835,2538.6,2538.3,3.08]
[1726853796452,0.7677,2538.6,2538.5,3.08]
[1726853797264,0.3714,2538.6,2538.5,3.47391]
[1726853797873,0.3714,2538.6,2538.5,3.08]
[1726853798270,0.3714,2538.6,2538.5,3.47391]
[1726853798873,3.2078,2538.7,2538.6,0.39389]
[1726853799185,2.32842835,2538.9,2538.7,0.39388]
[1726853799390,2.32842835,2538.9,2538.8,3.08]
[1726853799889,1.52487483,2539.1,2538.8,17.2834]
[1726853800083,4.73267483,2539.2,2539.0,3.08]
[1726853800288,3.2078,2539.2,2539.0,3.47382]
[1726853800491,0.39382,2539.1,2539.0,3.08]
[1726853800695,0.39385,2538.9,2538.8,7.345]
[1726853800984,1.90747483,2539.1,2538.8,3.08]
[1726853801176,3.56188793,2539.2,2539.0,6.2878]
[1726853801380,4.33948793,2539.4,2539.0,3.08]
[1726853801583,2.30277236,2539.4,2539.2,0.3938]
[1726853801785,2.30277236,2539.4,2539.3,3.47378]
[1726853802084,0.4027,2539.4,2539.3,3.47378]
[1726853804593,0.4027,2539.4,2539.3,7.73878]
[1726853807286,7.28927463,2539.4,2539.3,3.08]
[1726853807494,8.51089276,2539.4,2539.3,3.47378]
[1726853807792,4.57257903,2539.4,2539.3,3.47378]
[1726853808486,2.03308589,2539.4,2539.3,3.47378]
[1726853808692,4.96853269,2539.4,2539.3,3.47378]
[1726853808891,5.36230269,2539.4,2539.3,3.08]
[1726853809491,4.96853269,2539.4,2539.3,3.47378]
[1726853810395,8.90693269,2539.4,2539.1,7.344]
[1726853810589,4.16859063,2539.3,2539.1,7.344]
[1726853810780,2.93328314,2539.3,2539.2,0.3938]
[1726853811094,2.93328314,2539.3,2539.0,0.39383]
[1726853811095,0.39382,2539.1,2539.0,0.39383]
[1726853811292,2.02978416,2539.1,2539.0,3.47383]
[1726853811485,2.02954877,2539.1,2539.0,3.47383]
[1726853811792,0.39382,2539.1,2539.0,3.47383]
[1726853812000,2.9255302,2539.2,2539.1,0.39382]
[1726853812191,4.55485987,2539.2,2539.0,3.08]
[1726853812384,2.02941046,2539.1,2539.0,3.47383]
[1726853815089,0.7821,2539.2,2539.0,3.47383]
[1726853815398,0.7821,2539.2,2539.1,0.39382]
[1726853815599,0.3883,2539.2,2539.1,0.39382]
[1726853815901,0.7821,2539.2,2539.1,0.39382]
[1726853816290,0.3883,2539.2,2539.1,0.39382]
[1726853816689,0.7821,2539.2,2539.1,0.39382]
[1726853817096,0.3883,2539.2,2539.1,0.39382]
[1726853817594,0.7821,2539.2,2539.1,0.39382]
[1726853817789,14.51903,2539.2,2538.8,3.47385]
[1726853817998,4.58063,2539.2,2538.8,3.47385]
[1726853818199,0.39384,2539.0,2538.8,3.08]
[1726853818396,0.376,2538.9,2538.8,3.47386]
[1726853818703,0.7476,2538.9,2538.8,0.39386]
[1726853820599,1.14145,2538.9,2538.8,0.39386]
[1726853821300,0.7476,2538.9,2538.8,0.39386]
[1726853821705,1.14145,2538.9,2538.8,0.39386]
[1726853822099,0.7476,2538.9,2538.8,0.39386]
[1726853823494,1.52176733,2539.1,2539.0,0.39383]
[1726853823495,0.3801,2539.1,2539.0,0.39383]
[1726853823802,0.3801,2539.1,2539.0,3.47383]
[1726853824006,3.2078,2539.2,2539.1,0.39382]
[1726853824403,0.4041,2539.3,2539.2,1.37831]
[1726853824605,1.52176733,2539.5,2539.4,0.39377]
[1726853824799,5.13366733,2539.6,2539.5,0.39375]
[1726853825108,5.13524114,2539.6,2539.5,0.39375]
[1726853827806,1.92744114,2539.6,2539.5,0.39375]
[1726853827995,0.4041,2539.6,2539.5,0.39375]
[1726853828194,1.92744114,2539.6,2539.5,0.39375]
[1726853828599,1.92744114,2539.6,2539.3,0.39378]
[1726853828600,0.39375,2539.5,2539.3,0.39378]
[1726853828804,1.52334114,2539.5,2539.2,7.342]
[1726853829008,1.91710114,2539.5,2539.3,0.39378]
[1726853829400,5.85470114,2539.5,2539.3,0.39378]
[1726853829600,1.52334114,2539.5,2539.4,0.39377]
[1726853829802,2.32119114,2539.6,2539.4,0.39377]
[1726853830006,3.9376,2539.5,2539.2,7.342]
[1726853830209,0.3938,2539.2,2539.1,4.262]
[1726853830408,4.73114114,2539.4,2539.1,4.65581]
[1726853830602,0.7893,2539.3,2539.1,0.39381]
[1726853830799,8.66954114,2539.4,2539.2,3.08]
[1726853830800,0.39378,2539.4,2539.2,3.08]
[1726853831104,2.31204114,2539.5,2539.3,0.39378]
[1726853831313,5.91360114,2539.5,2539.3,0.39378]
[1726853831803,4.39026,2539.5,2539.3,0.39377]
[1726853832004,0.39378,2539.3,2539.2,3.47379]
[1726853832511,1.91712114,2539.4,2539.3,0.39378]
[1726853832713,1.91712114,2539.4,2539.2,3.08]
[1726853832714,0.39378,2539.3,2539.2,3.47379]
[1726853833010,0.39378,2539.3,2539.0,0.3789]
[1726853833011,0.3938,2539.2,2539.1,0.3938]
[1726853833203,3.2078,2539.2,2538.9,4.131]
[1726853833410,0.8026,2539.1,2539.0,0.39383]
[1726853833714,1.19642,2539.1,2539.0,0.39383]
[1726853834020,1.19642,2539.1,2539.0,3.47383]
[1726853834021,0.8026,2539.1,2539.0,3.47383]
[1726853834706,1.19642,2539.1,2539.0,3.47383]
[1726853835511,2.32594114,2539.1,2539.0,3.47383]
[1726853836114,2.32594114,2539.1,2539.0,0.39383]
[1726853836115,6.65816114,2539.1,2539.0,0.39383]
[1726853836316,2.71976114,2539.1,2539.0,0.39383]
[1726853836614,1.19642,2539.1,2539.0,0.39383]
[1726853837006,0.8026,2539.1,2539.0,0.39383]
[1726853837317,2.32594114,2539.1,2539.0,0.39383]
[1726853838211,0.8026,2539.1,2539.0,0.39383]
[1726853838412,1.19642,2539.1,2539.0,0.39383]
[1726853838714,2.72239396,2539.1,2539.0,0.39383]
[1726853839014,0.98459,2539.0,2538.5,7.27256]
[1726853839208,1.91985906,2538.8,2538.7,0.39386]
[1726853839409,1.52598906,2538.8,2538.7,0.39386]
[1726853839609,1.91984906,2538.9,2538.8,0.39386]
[1726853840009,4.33226,2538.9,2538.8,0.39386]